bitfinex-derivatives/quotes_ETHF0:USTF0_20250910
["timestamp","ask_amount","ask_price","bid_price","bid_amount"]
[1757481868531,0.7007,4315.0,4314.9,1.96115522]
[1757481868730,0.2025,4315.0,4314.9,1.96115522]
[1757481868934,0.1193,4315.5,4314.9,1.65325522]
[1757481869236,0.2025,4315.1,4315.0,1.95767853]
[1757481869437,0.5032,4315.1,4315.0,1.95767853]
[1757481870026,0.5032,4315.1,4315.0,0.7181]
[1757481870636,0.7007,4315.1,4315.0,0.7181]
[1757481870837,0.82,4315.0,4314.9,1.45615522]
[1757481871037,0.82,4315.0,4314.9,0.21657669]
[1757481873337,0.82,4315.0,4314.9,0.00347669]
[1757481873829,0.82,4315.0,4314.9,0.21657669]
[1757481876538,0.82,4315.0,4314.9,0.00347669]
[1757481880443,0.5193,4314.0,4313.2,1.54747853]
[1757481880635,0.7007,4313.3,4313.2,0.7181]
[1757481880940,0.7007,4313.3,4313.2,7.2181]
[1757481881240,0.5032,4313.3,4313.2,7.2181]
[1757481883137,0.1193,4314.0,4313.3,0.3079]
[1757481883341,0.82,4314.0,4313.9,0.4102]
[1757481883741,0.82,4314.0,4313.6,0.3079]
[1757481885942,0.82,4314.0,4313.2,6.74]
[1757481885943,0.3007,4313.9,4313.3,0.3079]
[1757481886139,0.7007,4313.4,4313.3,0.7181]
[1757481888546,0.5032,4313.4,4313.3,0.7181]
[1757481889344,0.1193,4314.0,4313.3,0.4102]
[1757481889547,0.7085,4313.9,4313.8,0.2068]
[1757481891745,0.4157,4314.5,4313.8,0.4217]
[1757481891944,0.4121,4314.6,4313.7,0.3134]
[1757481892150,0.7085,4313.8,4313.7,0.7351]
[1757481893652,0.2096,4313.8,4313.7,0.7351]
[1757481895453,0.506,4313.8,4313.7,0.7351]
[1757481896147,0.4121,4313.8,4313.5,1.23957853]
[1757481896347,0.8361,4313.5,4313.4,0.5202]
[1757481896752,0.8361,4313.5,4313.4,0.7351]
[1757481897548,0.8361,4313.5,4313.2,6.5]
[1757481897749,0.4121,4313.3,4313.2,6.7068]
[1757481897949,0.7085,4313.3,4313.2,7.2351]
[1757481900247,0.7085,4313.3,4313.2,8.47467853]
[1757481900649,0.7085,4313.3,4313.2,1.97467853]
[1757481903161,0.7085,4313.3,4313.2,0.7351]
[1757481904760,0.2964,4313.2,4312.9,0.3134]
[1757481904965,0.8361,4313.0,4312.9,0.7592]
[1757481905363,0.8361,4313.0,4312.9,0.9741]
[1757481905664,0.7085,4313.0,4312.9,0.9741]
[1757481906665,0.4121,4312.6,4312.5,1.87601803]
[1757481906863,0.7085,4312.6,4312.5,1.98372378]
[1757481907062,0.1276,4313.0,4312.5,1.79342378]
[1757481907271,0.506,4312.6,4312.5,1.79342378]
[1757481907770,0.506,4312.9,4312.8,0.2068]
[1757481907966,0.506,4312.9,4312.8,0.7351]
[1757481909465,0.13107669,4313.0,4312.9,0.3134]
[1757481909466,0.00347669,4313.0,4312.9,0.3134]
[1757481909666,0.00347669,4313.0,4312.9,0.7351]
[1757481910269,0.00347669,4313.0,4312.9,4.96696]
[1757481910565,0.2964,4314.4,4313.7,0.4217]
[1757481910876,1.2134924,4314.3,4314.2,0.2068]
[1757481912868,0.7085,4314.3,4314.2,0.7351]
[1757481918576,0.7085,4314.3,4314.2,0.7035]
[1757481919381,0.8385,4314.0,4313.9,1.24951402]
[1757481919578,0.4101,4313.7,4313.2,1.24951402]
[1757481919875,0.8385,4313.5,4313.4,0.5003]
[1757481920076,0.8385,4313.5,4313.4,0.7051]
[1757481922179,0.716,4313.5,4313.4,0.7051]
[1757481922781,0.8385,4313.5,4313.4,0.2084]
[1757481922980,0.716,4313.4,4313.3,1.24951402]
[1757481923182,0.4101,4313.4,4313.2,1.24951402]
[1757481923381,0.716,4313.3,4313.2,1.45791402]
[1757481924081,0.716,4313.3,4313.2,0.2084]
[1757481927484,0.3059,4313.2,4313.0,1.24951402]
[1757481927684,0.716,4313.1,4313.0,0.2084]
[1757481927877,0.716,4313.1,4312.9,1.24951402]
[1757481928184,0.716,4312.9,4312.8,1.95461402]
[1757481929782,0.504,4312.9,4312.8,1.95461402]
[1757481934089,0.504,4312.9,4312.8,0.7051]
[1757481936986,0.1225,4313.5,4312.8,0.7051]
[1757481937193,0.504,4313.4,4313.3,0.7051]
[1757481939393,0.716,4313.4,4313.3,0.7051]
[1757481939594,0.504,4313.4,4313.3,0.7051]
[1757481939986,0.716,4313.4,4313.3,0.7051]
[1757481942699,0.716,4313.4,4313.3,0.2084]
[1757481943591,0.716,4313.4,4313.3,0.5003]
[1757481944799,0.716,4313.4,4313.3,0.2084]
[1757481944999,0.3059,4313.3,4313.1,7.74902037]
[1757481945392,0.716,4313.2,4313.1,1.45742037]
[1757481946292,0.716,4313.2,4313.1,1.74932037]
[1757481947302,0.716,4313.2,4313.1,0.7131]
[1757481948408,0.716,4313.2,4313.1,0.2084]
[1757481949296,0.716,4313.2,4313.1,0.5242]
[1757481950106,0.716,4313.2,4313.1,0.737]
[1757481951920,0.3197,4313.5,4313.4,0.4182]
[1757481952217,0.8149,4313.5,4313.4,1.9858904]
[1757481954520,0.2921,4313.5,4313.4,1.9858904]
[1757481954822,0.4893,4313.6,4313.5,0.734]
[1757481955021,0.99557462,4313.6,4313.5,0.734]
[1757481957311,1.19867462,4313.6,4313.5,1.9858904]
[1757481957620,1.19867462,4313.6,4313.5,0.734]
[1757481957810,1.19867462,4313.6,4313.4,1.2518904]
[1757481958017,1.31906659,4313.5,4313.4,1.2518904]
[1757481959818,1.31906659,4313.5,4313.4,1.4572904]
[1757481960121,1.31906659,4313.5,4313.4,1.7730904]
[1757481960318,1.31906659,4313.5,4313.4,1.9858904]
[1757481960623,0.2921,4313.8,4313.4,0.734]
[1757481960921,0.9956988,4313.7,4313.6,0.734]
[1757481962022,1.1987988,4313.7,4313.6,0.734]
[1757481962323,1.1987988,4313.7,4313.6,0.2054]
[1757481962521,0.6924,4313.6,4313.5,1.25227018]
[1757481962820,1.1987988,4313.6,4313.5,1.25227018]
[1757481963520,0.4124,4313.5,4313.4,1.25227018]
[1757481963723,0.8127,4313.5,4313.4,1.45767018]
[1757481964224,1.31909191,4313.5,4313.4,0.2054]
[1757481965219,1.19879191,4313.5,4313.4,0.734]
[1757481966015,1.31909191,4313.5,4313.4,0.734]
[1757481966221,1.31909191,4313.5,4313.4,0.2054]
[1757481966725,1.31909191,4313.5,4313.4,0.5212]
[1757481966918,1.31909191,4313.5,4313.4,0.734]
[1757481969520,0.6924,4313.4,4313.3,1.25227018]
[1757481969719,0.4003,4313.3,4312.8,1.25227018]
[1757481969918,0.6924,4312.8,4312.7,1.25227018]
[1757481970421,0.4003,4312.8,4312.6,1.25227018]
[1757481970616,0.6924,4312.7,4312.6,1.45767018]
[1757481971214,0.6924,4312.7,4312.6,1.98627018]
[1757481971412,0.6924,4312.7,4312.6,0.734]
[1757481974024,0.6924,4312.7,4312.6,1.98627018]
[1757481975126,1.2459284,4314.1,4312.6,1.98627018]
[1757481975127,0.4893,4313.1,4313.0,0.734]
[1757481975327,0.6924,4313.1,4313.0,0.734]
[1757481986329,0.236,4313.3,4313.0,0.8512]
[1757481986527,0.236,4313.3,4313.2,0.6889]
[1757481986832,0.7352,4313.3,4313.2,0.6889]
[1757481989032,0.9479,4313.3,4313.2,0.6889]
[1757481993141,0.1225,4314.0,4313.2,0.3977]
[1757481993142,0.3585,4314.0,4313.2,0.3977]
[1757481993340,1.21772262,4313.9,4313.8,0.494]
[1757481993539,1.21772262,4313.9,4313.8,0.6889]
[1757481993845,0.7119,4313.9,4313.8,0.6889]
[1757481997850,0.7119,4313.9,4313.3,1.24950506]
[1757481997851,0.7119,4313.9,4313.5,0.2912]
[1757481998146,0.7119,4313.3,4313.2,1.93840506]
[1757481998943,0.7119,4313.3,4313.2,1.64720506]
[1757481999443,0.7119,4313.3,4313.2,0.6889]
[1757482001951,0.2947,4313.3,4313.2,0.6889]
[1757482002145,0.2045,4313.8,4313.7,0.6889]
[1757482002450,0.7119,4313.8,4313.7,0.6889]
[1757482004749,0.4992,4313.8,4313.7,0.6889]
[1757482006055,0.7119,4313.8,4313.7,0.6889]
[1757482008154,0.4992,4313.8,4313.7,0.6889]
[1757482012256,0.694,4313.8,4313.7,0.6889]
[1757482014057,1.19931896,4313.8,4313.7,0.2028]
[1757482014459,0.5199,4313.5,4313.4,0.2932]
[1757482014757,0.8412,4313.5,4313.4,0.7084]
[1757482016556,0.8412,4313.5,4313.4,1.95790506]
[1757482017258,0.7179,4313.5,4313.4,1.95790506]
[1757482022555,0.8412,4313.5,4313.4,1.24950506]
[1757482022759,0.5199,4313.0,4312.9,1.24950506]
[1757482022963,0.3213,4312.9,4312.8,1.24950506]
[1757482023155,0.7179,4312.9,4312.8,0.2007]
[1757482023351,0.7179,4312.9,4312.8,0.4939]
[1757482024161,0.7179,4312.9,4312.8,1.74340506]
[1757482024355,0.7179,4312.9,4312.8,1.45020506]
[1757482025160,0.7179,4312.9,4312.8,0.2007]
[1757482027059,0.7179,4312.9,4312.8,0.4939]
[1757482027269,0.7179,4312.9,4312.8,0.7084]
[1757482028356,0.3213,4312.8,4312.7,1.24950506]
[1757482028555,0.7179,4312.7,4312.6,1.24950506]
[1757482028754,0.5199,4312.5,4312.1,1.24950506]
[1757482028956,0.7179,4312.2,4312.1,0.2007]
[1757482029863,0.7179,4312.2,4312.1,0.4939]
[1757482032759,0.7179,4312.2,4312.1,0.7084]
[1757482035770,0.5231,4312.9,4312.8,0.7084]
[1757482035970,0.7179,4312.9,4312.8,0.7084]
[1757482036975,33.404,4313.7,4312.8,0.4152]
[1757482036976,33.64,4313.7,4312.8,0.4152]
[1757482037176,0.4961,4313.4,4313.3,0.7184]
[1757482037479,0.4961,4313.9,4313.8,0.2096]
[1757482037673,0.6927,4313.9,4313.8,0.2096]
[1757482037873,0.6927,4313.9,4313.8,0.7184]
[1757482038377,0.6927,4313.9,4313.8,0.4058]
[1757482038784,0.6927,4313.9,4313.3,0.3126]
[1757482039283,0.8214,4313.5,4313.4,7.0222]
[1757482040781,0.8214,4313.5,4313.4,6.7096]
[1757482040982,0.8214,4313.5,4313.4,6.5]
[1757482041486,0.8214,4313.5,4313.4,0.2096]
[1757482042785,0.8214,4313.5,4313.4,0.7184]
[1757482043180,0.1233,4314.0,4313.4,0.7184]
[1757482043483,0.4961,4313.9,4313.8,0.7184]
[1757482043677,0.6927,4313.9,4313.8,0.7184]
[1757482047085,0.4961,4313.9,4313.8,0.7184]
[1757482050084,0.2916,4312.9,4312.8,1.24950506]
[1757482050290,0.6927,4312.9,4312.6,1.24950506]
[1757482050492,0.6927,4312.9,4312.5,1.56210506]
[1757482050690,0.6927,4312.9,4312.8,0.2096]
[1757482051594,0.6927,4312.9,4312.8,0.5222]
[1757482052385,0.6927,4312.9,4312.8,0.7184]
[1757482052591,1.22065783,4313.4,4312.9,0.3126]
[1757482052592,0.2916,4313.4,4312.9,0.3126]
[1757482052788,0.2045,4313.4,4313.3,0.7184]
[1757482053190,0.2045,4313.4,4313.3,7.2184]
[1757482053790,0.2916,4313.6,4313.3,7.2184]
[1757482053988,0.4961,4313.6,4313.5,0.7184]
[1757482059399,0.6927,4313.6,4313.5,0.7184]
[1757482061991,0.4961,4313.6,4313.5,0.8416]
[1757482062194,0.2916,4314.4,4313.8,0.3126]
[1757482062495,0.5244,4314.5,4314.4,0.2096]
[1757482062697,1.02887534,4314.5,4314.4,0.2096]
[1757482062896,1.32047534,4314.5,4314.1,0.3126]
[1757482063097,0.6927,4314.2,4314.1,0.5222]
[1757482063298,1.19717534,4314.2,4314.1,0.5222]
[1757482063798,1.19717534,4314.2,4314.1,0.7184]
[1757482064194,1.19748161,4314.2,4314.1,0.7184]
[1757482066800,1.19748161,4314.2,4313.6,1.24950506]
[1757482067000,0.1942,4313.8,4313.7,0.7021]
[1757482067205,0.5127,4313.8,4313.7,0.7021]
[1757482067906,0.3175,4314.5,4314.4,0.1973]
[1757482068097,0.5257,4314.5,4314.4,0.1973]
[1757482068298,1.03095598,4314.5,4314.2,0.3022]
[1757482068499,0.7209,4314.3,4314.2,0.7021]
[1757482068804,1.2459284,4315.9,4314.8,0.7021]
[1757482069001,0.7209,4315.4,4315.3,0.7021]
[1757482073112,0.7209,4315.4,4315.3,0.3999]
[1757482075307,0.7209,4315.4,4315.3,0.1973]
[1757482075504,0.7209,4315.4,4315.0,0.3022]
[1757482076011,0.7209,4315.4,4314.6,6.5]
[1757482076214,0.1942,4314.9,4314.8,0.7021]
[1757482076413,0.5127,4314.9,4314.8,0.7021]
[1757482076717,0.7209,4314.9,4314.8,0.1973]
[1757482076914,0.7209,4314.9,4314.8,0.7021]
[1757482078609,0.5127,4314.9,4314.8,0.7021]
[1757482079413,0.5311,4315.5,4315.4,0.1973]
[1757482080116,0.8496,4315.5,4315.4,0.1973]
[1757482080505,0.8496,4315.5,4315.4,0.7021]
[1757482080709,0.7209,4315.5,4315.4,0.7021]
[1757482081105,0.30466572,4317.0,4315.0,0.1199]
[1757482081106,0.1233,4317.0,4315.6,0.7021]
[1757482081310,0.1233,4317.0,4315.5,0.1199]
[1757482081311,0.7209,4316.4,4316.3,0.1973]
[1757482081818,0.4024,4316.4,4315.7,0.3022]
[1757482082016,0.7209,4316.3,4316.2,0.1973]
[1757482083919,0.7209,4316.3,4316.2,0.7021]
[1757482088812,0.5127,4316.3,4316.2,0.7021]
[1757482090214,0.1942,4316.7,4316.6,0.3999]
[1757482090412,0.5127,4316.7,4316.6,0.7021]
[1757482090808,0.7477,4317.0,4316.9,0.3999]
[1757482091020,0.9559,4317.0,4316.9,0.7021]
[1757482091317,1.0792,4317.0,4316.9,0.7021]
[1757482094019,1.0792,4317.0,4316.9,0.3999]
[1757482094323,1.0792,4317.0,4316.9,0.1973]
[1757482095018,0.7607,4317.0,4316.2,0.3022]
[1757482095221,0.5127,4316.3,4316.2,0.7021]
[1757482096320,0.5127,4316.3,4316.2,1.73094207]
[1757482097224,0.3034,4316.9,4316.2,1.42874207]
[1757482097525,0.3583,4317.0,4316.2,1.42874207]
[1757482097526,0.4989,4316.4,4316.3,0.7184]
[1757482099714,0.3583,4317.0,4316.4,0.3064]
[1757482099715,0.3034,4316.9,4316.4,0.3064]
[1757482100125,0.3034,4316.9,4316.8,0.2003]
[1757482100126,0.7117,4316.9,4316.8,0.2003]
[1757482100530,0.7117,4316.9,4316.8,0.7184]
[1757482101122,0.7117,4316.9,4316.8,1.74724207]
[1757482101425,0.4989,4316.9,4316.8,1.74724207]
[1757482101727,0.4989,4316.9,4316.8,8.24724207]
[1757482103129,0.4989,4316.9,4316.8,7.2184]
[1757482103723,0.1233,4317.5,4316.9,0.3064]
[1757482103930,0.7117,4317.4,4317.3,0.2003]
[1757482104629,0.7117,4317.4,4317.1,0.3064]
[1757482105025,0.3034,4316.9,4316.8,6.5]
[1757482105231,0.7117,4316.9,4316.8,6.7003]
[1757482105627,0.7117,4316.9,4316.8,7.2184]
[1757482108331,0.4989,4316.9,4316.8,7.2184]
[1757482108528,0.1233,4317.5,4317.4,0.7184]
[1757482108529,0.3188,4317.5,4317.4,0.7184]
[1757482108721,1.03270457,4317.5,4317.4,0.7184]
[1757482109127,1.21280457,4317.5,4317.4,0.7184]
[1757482109729,0.7117,4317.5,4317.4,0.7184]
[1757482110033,0.4989,4317.5,4317.4,0.7184]
[1757482110426,0.7117,4317.5,4317.4,0.7184]
[1757482110826,0.8412,4317.5,4317.4,0.7184]
[1757482111834,0.7117,4317.5,4317.4,0.7184]
[1757482112136,0.4989,4317.6,4317.5,0.7184]
[1757482112434,0.7117,4317.6,4317.5,0.7184]
[1757482116327,0.1233,4318.0,4317.5,0.8428]
[1757482116633,0.3034,4318.4,4317.9,0.3064]
[1757482116827,1.74054207,4318.4,4318.3,0.2003]
[1757482117031,0.8412,4318.0,4317.9,0.2003]
[1757482117231,1.87004207,4318.0,4317.9,0.2003]
[1757482117830,1.87004207,4318.0,4317.9,0.5067]
[1757482118031,1.87004207,4318.0,4317.9,0.7184]
[1757482118233,0.4989,4318.0,4317.9,0.7184]
[1757482119542,0.8412,4318.0,4317.9,0.7184]
[1757482119845,0.4083,4317.8,4317.7,6.5]
[1757482120136,0.7117,4317.8,4317.7,7.0067]
[1757482120330,0.7117,4317.8,4317.7,7.2184]
[1757482120736,1.74054207,4317.8,4317.7,6.5]
[1757482121138,0.7117,4317.8,4317.7,7.0067]
[1757482121542,0.7117,4317.8,4317.7,0.5067]
[1757482122743,0.7117,4317.8,4317.7,0.7184]
[1757482124635,0.7117,4317.8,4317.7,0.412]
[1757482124947,0.7117,4317.8,4317.7,0.7184]
[1757482125845,0.7117,4317.8,4317.7,0.2003]
[1757482126043,0.7117,4317.8,4317.3,7.74813429]
[1757482126246,0.3034,4317.7,4317.6,0.2003]
[1757482126436,0.7117,4317.7,4317.6,0.2003]
[1757482126636,1.74054207,4317.7,4317.3,7.74813429]
[1757482126837,1.74054207,4317.4,4317.3,7.74813429]
[1757482127038,0.7117,4317.4,4317.3,7.2236]
[1757482127252,0.5026,4317.4,4317.3,7.2236]
[1757482127845,0.5026,4317.4,4317.3,0.7236]
[1757482128037,0.7084,4317.4,4317.3,0.7236]
[1757482129544,0.7084,4317.4,4317.3,0.4116]
[1757482129946,0.7084,4317.4,4317.3,0.7236]
[1757482132246,0.7084,4317.4,4317.3,0.2003]
[1757482132746,0.3108,4317.3,4317.1,1.24813429]
[1757482132944,0.405,4317.2,4317.1,1.24813429]
[1757482133249,0.7158,4317.2,4317.0,1.24813429]
[1757482133552,0.7158,4317.1,4317.0,1.76433429]
[1757482133752,0.7158,4317.1,4317.0,1.97563429]
[1757482134643,0.7158,4317.1,4317.0,1.66363429]
[1757482135251,0.7158,4317.1,4317.0,0.7275]
[1757482135745,0.7158,4317.1,4316.4,1.02884207]
[1757482135746,0.3108,4316.6,4316.4,1.66921803]
[1757482135951,0.7158,4316.5,4316.4,1.97395391]
[1757482136139,0.7158,4316.5,4316.4,0.7275]
[1757482136551,0.51,4316.5,4316.4,0.7275]
[1757482136751,0.51,4316.5,4316.4,1.97395391]
[1757482139155,0.51,4316.5,4316.4,0.7275]
[1757482140349,0.1992,4316.9,4316.8,0.4155]
[1757482140652,0.3108,4317.4,4316.9,0.312]
[1757482140849,0.7158,4317.4,4317.3,0.5162]
[1757482141056,1.2207976,4317.4,4317.3,0.5162]
[1757482141752,1.2207976,4317.4,4317.3,0.2042]
[1757482143458,2.24963967,4317.4,4317.0,0.312]
[1757482143658,1.74464207,4317.4,4317.0,0.312]
[1757482144250,1.74464207,4317.4,4316.6,0.312]
[1757482145049,0.51,4316.6,4316.5,0.8453]
[1757482146057,0.3268,4317.0,4316.9,0.2042]
[1757482146356,0.8434,4317.0,4316.9,0.7275]
[1757482147253,0.7158,4317.0,4316.9,0.7275]
[1757482147756,0.3108,4317.3,4316.9,0.7275]
[1757482147946,0.3108,4317.3,4317.0,0.312]
[1757482148149,0.51,4317.1,4317.0,0.7275]
[1757482149258,0.5326,4317.5,4317.4,0.2042]
[1757482149456,1.03741426,4317.5,4317.4,0.5162]
[1757482149860,1.34821426,4317.5,4317.4,0.5162]
[1757482150062,1.34821426,4317.5,4317.0,0.312]
[1757482150261,0.50481426,4317.4,4317.1,0.312]
[1757482150561,0.90981426,4317.4,4317.3,0.2042]
[1757482150962,0.7158,4317.4,4317.3,0.7275]
[1757482151966,0.7158,4317.4,4317.3,0.4155]
[1757482152262,0.7158,4317.4,4317.3,0.2042]
[1757482152567,0.1276,4317.5,4316.7,1.76265391]
[1757482152568,0.7158,4316.8,4316.7,1.76265391]
[1757482152757,0.7158,4316.8,4316.7,0.5162]
[1757482153264,0.7158,4316.8,4316.7,0.7275]
[1757482155662,0.7158,4316.8,4316.7,0.4155]
[1757482155860,0.7158,4316.8,4316.7,0.7275]
[1757482156551,0.7158,4316.8,4316.7,0.2042]
[1757482156758,0.7158,4316.8,4316.6,1.24645391]
[1757482156759,0.3108,4316.7,4316.6,1.24645391]
[1757482156957,0.3108,4316.7,4316.0,0.3594]
[1757482156958,0.7241,4316.4,4316.3,1.24645391]
[1757482157165,0.7241,4316.4,4316.3,1.75135391]
[1757482157362,0.7241,4316.4,4316.3,1.95095391]
[1757482159269,0.7241,4316.4,4316.3,0.7045]
[1757482160468,0.7241,4316.4,4316.3,0.2112]
[1757482160684,1.64267214,4316.4,4315.9,1.24674181]
[1757482160984,0.8458,4316.0,4315.9,1.24674181]
[1757482161181,0.8458,4316.0,4315.9,1.45794181]
[1757482162184,0.8458,4316.0,4315.9,1.24674181]
[1757482162481,0.8458,4316.0,4315.8,0.00347669]
[1757482167890,0.8458,4316.0,4315.9,0.7045]
[1757482168186,0.8458,4316.0,4315.9,0.2112]
[1757482168391,0.8458,4316.0,4315.8,0.00347669]
[1757482171486,0.8458,4316.0,4315.9,0.2112]
[1757482171789,0.8458,4316.0,4315.9,0.7045]
[1757482172186,0.7241,4316.0,4315.9,0.7045]
[1757482172484,0.5093,4316.0,4315.9,0.7045]
[1757482176092,0.7241,4316.0,4315.9,0.7045]
[1757482177491,0.8458,4316.0,4315.9,0.7045]
[1757482179290,0.7241,4316.0,4315.9,0.7045]
[1757482184403,0.5461,4316.5,4316.4,0.2112]
[1757482184700,0.5461,4316.5,4316.4,0.5049]
[1757482185099,0.8458,4316.5,4316.4,0.5049]
[1757482187397,0.8458,4316.5,4316.4,0.2112]
[1757482188100,1.35030955,4316.5,4316.4,0.2112]
[1757482188401,1.35030955,4316.5,4316.4,0.529]
[1757482188995,1.35030955,4316.5,4316.4,0.7339]
[1757482189803,1.35030955,4316.5,4316.4,0.4161]
[1757482190701,1.35030955,4316.5,4316.4,0.7339]
[1757482194306,1.35030955,4316.5,4316.4,0.2112]
[1757482196306,0.7137,4316.1,4316.0,1.24674181]
[1757482196506,0.7137,4316.1,4316.0,1.44494181]
[1757482196696,0.7137,4316.1,4316.0,1.24674181]
[1757482196900,0.7137,4316.1,4316.0,1.44494181]
[1757482197207,0.7137,4316.1,4316.0,1.76274181]
[1757482200208,0.7137,4316.1,4316.0,1.44494181]
[1757482200706,0.7137,4316.1,4316.0,1.76274181]
[1757482203609,0.7137,4316.1,4316.0,1.96764181]
[1757482204008,0.1217,4316.5,4316.0,2.09074181]
[1757482204301,0.90344383,4316.4,4316.3,0.7209]
[1757482204698,0.5184,4316.4,4316.3,0.7209]
[1757482205504,0.7137,4316.4,4316.3,0.7209]
[1757482207101,0.7137,4316.4,4316.3,0.1982]
[1757482207306,0.7137,4316.3,4316.2,1.24674181]
[1757482207708,0.7137,4316.3,4316.2,1.44494181]
[1757482208008,0.7137,4316.3,4316.2,1.76274181]
[1757482208211,0.7137,4316.3,4316.2,1.96764181]
[1757482208408,0.5184,4316.3,4316.2,1.96764181]
[1757482209507,0.3152,4316.9,4316.3,0.3178]
[1757482209712,1.18036001,4316.9,4316.8,0.1982]
[1757482209910,1.18036001,4316.9,4316.2,1.76274181]
[1757482209911,0.7137,4316.3,4316.2,1.76274181]
[1757482210113,0.7137,4316.3,4316.2,1.96764181]
[1757482211714,1.34587214,4317.0,4316.2,1.96764181]
[1757482211910,0.50500005,4316.9,4316.8,0.7209]
[1757482212116,0.1276,4317.5,4316.8,0.7209]
[1757482212304,0.2032,4317.4,4317.3,0.7209]
[1757482212505,0.1181,4318.5,4317.3,0.7209]
[1757482212714,0.73593479,4318.4,4317.6,1.24714694]
[1757482213024,0.7137,4317.8,4317.7,0.7209]
[1757482213514,0.3985,4317.8,4317.4,1.24714694]
[1757482213715,0.7137,4317.5,4317.4,1.76314694]
[1757482213915,0.7137,4317.5,4317.4,1.96804694]
[1757482214309,0.7137,4317.5,4317.4,0.7209]
[1757482214512,0.8318,4317.5,4317.4,0.7209]
[1757482214910,0.8318,4317.5,4317.4,0.4031]
[1757482215116,0.8318,4317.5,4316.8,1.24714694]
[1757482215117,0.3985,4317.1,4316.8,1.24714694]
[1757482215312,0.7137,4316.8,4316.7,0.1982]
[1757482215619,0.3152,4316.7,4316.5,1.24714694]
[1757482215818,0.7137,4316.7,4316.6,0.7209]
[1757482216019,0.7137,4316.7,4316.6,0.4031]
[1757482217614,0.7137,4316.7,4316.6,0.6975]
[1757482217921,0.5184,4316.7,4316.6,0.6975]
[1757482219014,0.7215,4316.7,4316.6,0.1982]
[1757482219922,0.4133,4316.3,4316.2,1.46194694]
[1757482220121,0.7065,4316.3,4316.2,1.75634694]
[1757482220315,0.7065,4316.3,4316.2,1.95734694]
[1757482223615,0.5034,4316.3,4316.2,1.95734694]
[1757482224214,0.2932,4316.8,4316.2,1.66294694]
[1757482224422,0.93817,4316.8,4316.7,0.5092]
[1757482224621,0.7065,4316.8,4316.7,0.7102]
[1757482229024,0.235,4317.1,4316.7,0.7102]
[1757482229228,0.2102,4316.9,4316.8,0.2944]
[1757482229526,0.7065,4316.9,4316.8,0.7102]
[1757482232523,0.2932,4316.9,4316.8,0.7102]
[1757482232723,0.235,4317.4,4316.9,0.2944]
[1757482232921,0.6483,4317.4,4317.3,0.2148]
[1757482233127,0.6483,4317.4,4317.3,0.5092]
[1757482233327,1.15208663,4317.4,4317.3,0.5092]
[1757482233530,1.44528663,4317.4,4317.3,0.5092]
[1757482234729,0.9415,4317.4,4317.3,0.5092]
[1757482237035,0.9415,4317.4,4317.3,0.2148]
[1757482237235,1.44540185,4317.4,4317.1,0.2944]
[1757482237530,0.9415,4317.4,4317.1,0.2944]
[1757482237726,0.2102,4316.8,4316.7,0.4158]
[1757482237933,0.7065,4316.8,4316.7,0.7102]
[1757482239837,0.5034,4316.8,4316.7,0.7102]
[1757482240222,0.5034,4316.8,4316.7,1.95562932]
[1757482240428,0.5034,4316.9,4316.8,0.7102]
[1757482242524,0.2932,4317.1,4316.8,0.4158]
[1757482242722,0.5034,4317.0,4316.9,0.7102]
[1757482244335,0.7065,4317.0,4316.9,0.7102]
[1757482245336,0.5034,4317.0,4316.9,0.7102]
[1757482246138,0.7065,4317.0,4316.9,0.7102]
[1757482246340,0.8234,4317.0,4316.9,0.7102]
[1757482246544,1.32822705,4317.0,4316.9,0.7102]
[1757482249443,1.32822705,4317.0,4316.9,0.4158]
[1757482250039,1.03502705,4317.0,4316.7,1.54332932]
[1757482250240,0.7104,4316.8,4316.7,1.44522932]
[1757482250544,1.43543007,4316.8,4316.6,1.24542932]
[1757482250843,0.7104,4316.7,4316.6,1.24542932]
[1757482251144,0.7104,4316.7,4316.6,1.44522932]
[1757482251543,0.7104,4316.7,4316.6,1.24542932]
[1757482251742,0.3039,4316.6,4316.5,1.24542932]
[1757482251942,0.7104,4316.6,4316.5,1.24542932]
[1757482252734,0.7104,4316.6,4316.3,1.24542932]
[1757482252735,0.3039,4316.4,4316.3,1.24542932]
[1757482252939,0.7104,4315.9,4315.8,1.24890601]
[1757482253436,0.7104,4315.9,4315.8,0.20327669]
[1757482253637,0.7104,4315.9,4315.8,0.50117669]
[1757482253837,0.7104,4315.9,4315.8,0.20327669]
[1757482254451,0.7104,4315.9,4315.8,1.44870601]
[1757482255340,0.7104,4315.9,4315.8,0.00347669]
[1757482256746,4.4065,4315.9,4315.4,1.24542932]
[1757482256947,0.7104,4315.3,4315.2,1.24542932]
[1757482257246,0.7104,4315.3,4315.2,0.1998]
[1757482258243,0.5247,4315.0,4314.9,0.1998]
[1757482258442,0.4065,4315.0,4314.9,0.6952]
[1757482258643,0.235,4315.4,4314.9,0.3973]
[1757482258843,0.9454,4315.4,4315.3,0.3973]
[1757482259043,0.7104,4315.4,4315.3,0.6952]
[1757482259244,0.3039,4315.7,4315.3,0.6952]
[1757482259451,0.3039,4315.5,4315.4,0.2979]
[1757482259650,0.4065,4315.5,4315.1,0.2979]
[1757482259842,0.7104,4315.5,4315.4,0.6952]
[1757482260442,0.5,4315.5,4315.4,0.6952]
[1757482263451,0.7104,4315.5,4315.4,0.6952]
[1757482263650,0.3039,4315.6,4315.4,0.3973]
[1757482263951,0.5,4315.5,4315.4,0.3973]
[1757482264152,0.7104,4315.5,4315.4,0.3973]
[1757482264345,0.7104,4315.5,4315.4,0.6952]
[1757482267151,0.8286,4315.5,4315.4,0.6952]